bitfinex/quotes_ETHUSD_20260312
["timestamp","ask_amount","ask_price","bid_price","bid_amount"]
[1773322603812,2.24126647,2080.5,2078.6,3.178839]
[1773322603982,2.24126647,2080.5,2078.5,1.74635216]
[1773322604168,2.24126647,2080.5,2078.8,1.74635216]
[1773322604366,1.20169198,2080.4,2078.9,1.20255904]
[1773322604595,7.04803439,2080.5,2078.9,1.20255904]
[1773322604596,3.44292548,2080.5,2078.9,1.20255904]
[1773322604770,3.44292548,2080.5,2079.1,1.74635216]
[1773322604771,1.69657332,2080.5,2079.1,1.74635216]
[1773322604970,1.69657332,2080.5,2078.9,1.20255904]
[1773322605212,0.002,2079.9,2078.8,2.9489384]
[1773322605372,0.002,2079.9,2078.6,4.81087081]
[1773322605591,0.002,2079.9,2078.7,1.20264357]
[1773322605794,0.002,2079.9,2078.8,4.398194]
[1773322606010,0.002,2079.9,2078.7,1.20264357]
[1773322606011,0.002,2079.9,2078.6,1.20271308]
[1773322606196,0.002,2079.9,2078.4,1.2038195]
[1773322606402,0.002,2079.9,2078.4,0.001]
[1773322606403,1.74835216,2079.9,2078.4,0.001]
[1773322606610,2.24326647,2079.9,2078.4,0.001]
[1773322606800,0.49491431,2079.8,2078.4,0.001]
[1773322607117,1.74835216,2079.9,2078.1,0.001]
[1773322607118,1.74635216,2079.0,2078.1,0.001]
[1773322607716,2.24126647,2079.0,2078.1,0.001]
[1773322607892,0.49491431,2079.0,2078.1,0.001]
[1773322608415,1.20255904,2078.9,2078.1,0.001]
[1773322608927,1.20255904,2078.9,2077.9,0.001]
[1773322608928,0.49491431,2078.6,2077.9,0.001]
[1773322609130,1.20255904,2078.9,2076.2,1.74635216]
[1773322609131,0.49491431,2078.0,2076.2,1.74635216]
[1773322609347,0.49491431,2078.0,2076.1,1.20418091]
[1773322609348,1.74635216,2077.7,2076.1,1.20418091]
[1773322609489,1.74635216,2077.8,2076.2,4.180893]
[1773322609690,30.0,2080.8,2076.3,0.48425089]
[1773322609890,0.49491431,2083.5,2076.3,0.48425089]
[1773322609891,0.49491431,2083.5,2078.7,0.48425089]
[1773322609892,0.49491431,2082.3,2078.7,0.48425089]
[1773322610119,0.49491431,2082.3,2079.8,3.054087]
[1773322610120,5.234437,2081.1,2079.8,3.054087]
[1773322610324,1.74635216,2081.5,2079.8,5.59815]
[1773322610507,5.234437,2081.4,2079.8,4.8080792]
[1773322610712,2.13318,2081.3,2079.6,1.20215426]
[1773322611021,1.74635216,2081.2,2079.2,1.74635216]
[1773322611323,7.54883981,2081.2,2079.2,5.174731]
[1773322611519,2.07218,2081.0,2079.2,2.948731]
[1773322611728,5.234437,2081.1,2079.2,1.20237884]
[1773322611950,1.74635216,2080.6,2079.0,1.20246599]
[1773322612435,1.20163422,2080.5,2079.0,1.20246599]
[1773322612595,6.43607122,2080.5,2079.0,1.20246599]
[1773322613027,6.43607122,2080.5,2079.1,2.464536]
[1773322613205,6.43607122,2080.5,2079.0,1.20246599]
[1773322613713,6.43607122,2080.5,2078.9,2.94887656]
[1773322613902,5.234437,2080.5,2079.0,5.54548104]
[1773322614105,5.234437,2080.5,2078.7,4.81023618]
[1773322614106,0.7886642,2080.4,2078.7,1.74635216]
[1773322614305,1.74635216,2080.4,2078.7,2.94902298]
[1773322614509,1.20174974,2080.3,2078.7,2.94902298]
[1773322614697,5.234437,2080.3,2079.0,1.74635216]
[1773322614898,5.234437,2080.3,2078.7,2.94902298]
[1773322615204,5.234437,2080.2,2078.7,2.94902298]
[1773322615422,5.80248765,2080.4,2078.8,6.8]
[1773322615619,1.74635216,2079.5,2077.8,1.74635216]
[1773322615824,0.56805065,2079.9,2077.3,1.20348529]
[1773322615825,7.043554,2079.1,2077.3,1.20348529]
[1773322616134,1.74635216,2078.9,2077.2,2.49429845]
[1773322616301,1.74635216,2078.9,2077.2,3.69783727]
[1773322616495,1.74635216,2078.9,2077.0,1.74635216]
[1773322616496,1.20267474,2078.7,2077.0,1.74635216]
[1773322616696,1.74635216,2078.5,2076.7,30.0]
[1773322616930,2.42,2078.6,2076.5,1.20394895]
[1773322616931,1.74635216,2078.2,2076.5,1.20394895]
[1773322617210,0.161437,2078.1,2076.5,1.20394895]
[1773322617394,5.234437,2078.1,2076.7,2.04813]
[1773322617594,5.234437,2078.1,2076.6,1.74635216]
[1773322618211,1.74635216,2078.0,2076.4,4.409975]
[1773322618412,1.20313778,2077.9,2076.3,2.95040618]
[1773322618624,6.43757478,2077.9,2076.3,2.95040618]
[1773322618834,6.43757478,2077.9,2076.1,1.20418091]
[1773322618835,0.7886642,2077.6,2076.1,1.20418091]
[1773322619034,0.161437,2077.5,2076.3,1.74635216]
[1773322619209,0.161437,2077.8,2076.3,1.74635216]
[1773322619535,5.8616642,2077.7,2076.1,2.95053307]
[1773322619737,5.234437,2077.7,2076.1,2.95053307]
[1773322620239,1.74635216,2077.5,2075.8,1.74635216]
[1773322620425,1.20325359,2077.7,2076.5,1.20394895]
[1773322620616,5.073,2077.5,2076.4,1.20397489]
[1773322620821,5.073,2077.5,2076.1,2.95049725]
[1773322621041,0.161437,2077.4,2076.3,0.001]
[1773322621243,1.74635216,2077.2,2076.3,0.001]
[1773322621533,1.74635216,2077.2,2075.7,1.20441296]
[1773322621534,0.161437,2077.1,2075.7,1.20441296]
[1773322621737,0.161437,2077.1,2075.5,4.81802245]
[1773322621738,5.234437,2077.1,2075.5,4.81802245]
[1773322621902,2.53501636,2077.0,2075.5,1.20452902]
[1773322622102,2.31440281,2077.0,2075.3,4.81851774]
[1773322622425,1.20377503,2076.8,2076.0,0.001]
[1773322622742,6.43819305,2076.9,2076.0,0.001]
[1773322622942,1.20377503,2076.8,2076.0,0.001]
[1773322623314,0.7886642,2076.5,2076.0,0.001]
[1773322623817,2.432,2077.5,2076.0,0.001]
[1773322624021,1.74635216,2077.2,2076.0,0.001]
[1773322624364,5.53826065,2077.1,2076.0,0.001]
[1773322624537,5.53826065,2077.1,2075.8,0.001]
[1773322624538,2.31440281,2076.6,2075.8,0.001]
[1773322624700,1.74635216,2076.0,2074.4,4.82053432]
[1773322625029,1.74635216,2076.0,2074.1,1.20534207]
[1773322625030,1.74635216,2075.7,2074.1,1.20534207]
[1773322625233,2.31440281,2075.4,2073.7,4.8222773]
[1773322625407,2.433,2075.3,2073.7,4.8222773]
[1773322625604,5.232437,2075.3,2073.7,4.8222773]
[1773322625809,5.232437,2075.2,2073.8,0.04822065]
[1773322626137,0.160437,2075.1,2073.7,4.8222773]
[1773322626339,0.56805065,2075.0,2073.4,1.20574901]
[1773322626541,1.20487734,2074.9,2073.2,1.74635216]
[1773322626746,8.75171715,2074.9,2073.0,4.883233]
[1773322627040,5.072,2074.8,2073.0,3.146769]
[1773322627337,5.072,2074.8,2072.7,1.20615622]
[1773322627339,6.19565,2074.4,2072.7,1.20615622]
[1773322627511,0.56805065,2074.4,2072.7,1.20615622]
[1773322627706,5.232437,2074.3,2072.8,1.74635216]
[1773322628215,0.160437,2074.2,2072.8,1.74635216]
[1773322628419,1.20528396,2074.2,2072.9,1.20603984]
[1773322628617,6.0211012,2074.1,2072.9,1.20603984]
[1773322628844,6.0211012,2074.1,2072.0,4.00735048]
[1773322628845,5.232437,2074.1,2072.5,1.74635216]
[1773322629143,0.7886642,2074.0,2072.5,1.74635216]
[1773322629363,0.7886642,2074.0,2072.4,4.82530697]
[1773322629364,5.232437,2074.1,2072.9,1.74635216]
[1773322629507,5.232437,2073.9,2073.2,1.74635216]
[1773322629717,13.488748,2074.2,2072.5,4.99884416]
[1773322630020,1.74635216,2073.9,2072.3,2.01281603]
[1773322630351,0.56805065,2073.5,2072.3,2.01280781]
[1773322630550,0.56805065,2073.5,2072.3,0.80646182]
[1773322630551,2.95218445,2073.3,2072.3,0.80646182]
[1773322630714,0.7886642,2073.0,2072.3,2.01284872]
[1773322630914,5.3908726,2073.5,2072.3,0.80646182]
[1773322630915,0.160437,2072.9,2072.3,0.80646182]
[1773322631119,0.160437,2072.8,2072.3,0.80646182]
[1773322631422,5.072,2073.4,2072.3,0.80646182]
[1773322631423,0.56805065,2074.1,2072.3,2.01282192]
[1773322631626,5.072,2073.3,2072.5,1.74635216]
[1773322632013,5.232437,2073.3,2072.5,1.74635216]
[1773322632255,5.428605,2074.5,2072.8,1.74635216]
[1773322632425,5.428605,2074.4,2072.8,1.74635216]
[1773322632751,5.232437,2074.4,2073.2,4.555042]
[1773322632917,5.232437,2074.4,2073.7,1.74635216]
[1773322633325,1.20482926,2075.0,2073.7,1.74635216]
[1773322633528,5.232437,2074.8,2073.4,1.74635216]
[1773322633724,5.232437,2074.8,2073.5,6.01]
[1773322633946,5.232437,2074.7,2073.5,5.1583]
[1773322634115,5.232437,2074.9,2073.7,1.74635216]
[1773322634315,1.20477213,2075.1,2073.7,1.74635216]
[1773322634548,0.7886642,2074.9,2073.8,1.20551644]
[1773322634750,5.232437,2075.0,2074.0,1.74635216]
[1773322634951,5.232437,2075.0,2074.3,1.74635216]
[1773322635319,6.56332834,2076.0,2074.6,1.74635216]
[1773322635320,1.20424249,2076.0,2074.6,1.74635216]
[1773322635516,8.90961765,2075.9,2074.0,1.74635216]
[1773322635744,8.90961765,2075.9,2073.9,0.56640682]
[1773322635745,5.80048765,2075.9,2074.6,1.74635216]
[1773322636041,5.80048765,2075.9,2074.3,1.74635216]
[1773322636042,8.22948765,2075.9,2074.3,1.74635216]
[1773322636242,5.232437,2075.9,2074.4,12.641063]
[1773322636443,5.232437,2075.9,2075.1,3.590127]
[1773322636656,5.232437,2075.9,2075.1,1.20476121]
[1773322637070,5.232437,2075.9,2074.5,1.74635216]
[1773322637244,5.232437,2075.9,2074.7,6.539736]
[1773322637455,5.232437,2075.9,2074.8,1.74635216]
[1773322637863,0.7886642,2075.8,2074.8,1.74635216]
[1773322638067,5.232437,2075.9,2074.8,1.74635216]
[1773322638255,6.0211012,2075.9,2074.8,1.74635216]
[1773322638452,6.0211012,2075.9,2074.9,5.262536]
[1773322638453,5.232437,2075.9,2074.9,5.262536]
[1773322638665,5.232437,2075.9,2075.0,1.20481927]
[1773322638972,0.002,2076.9,2075.9,6.211852]
[1773322639466,4.61227418,2076.6,2075.5,7.481602]
[1773322639671,4.61227418,2076.6,2075.5,4.392827]
[1773322639882,4.61227418,2076.6,2075.2,11.227593]
[1773322640172,4.61227418,2076.6,2075.2,2.56415]
[1773322640342,4.61227418,2076.6,2075.2,5.235]
[1773322640692,4.61227418,2076.6,2075.4,1.74635216]
[1773322640849,4.61227418,2076.6,2075.3,1.20464511]
[1773322641047,4.61227418,2076.6,2075.4,1.74635216]
[1773322641244,4.61227418,2076.6,2075.5,7.388994]
[1773322641449,4.61227418,2076.6,2075.5,4.975702]
[1773322642058,0.002,2076.7,2075.4,1.74635216]
[1773322642265,4.61227418,2076.5,2076.0,1.74635216]
[1773322642496,4.61227418,2076.5,2075.7,1.74635216]
[1773322642780,4.61227418,2076.5,2075.8,1.20435494]
[1773322643480,4.61227418,2076.5,2075.1,4.81894284]
[1773322643481,1.20397966,2076.5,2075.1,2.036119]
[1773322643781,1.20397966,2076.5,2074.9,4.81936271]
[1773322643782,1.74635216,2076.3,2074.9,4.81936271]
[1773322643946,8.00220052,2076.4,2075.0,1.74635216]
[1773322644152,8.00220052,2076.4,2075.1,0.04819044]
[1773322644381,8.00220052,2076.4,2075.0,1.74635216]
[1773322644554,1.20406492,2076.3,2075.2,1.20470316]
[1773322644760,4.61227418,2076.2,2075.1,1.20471825]
[1773322644955,4.61227418,2076.2,2074.5,4.81997397]
[1773322644956,7.33055268,2076.2,2074.5,4.81997397]
[1773322645171,4.61227418,2076.1,2074.5,4.81997397]
[1773322645371,5.58420052,2076.1,2074.5,4.81997397]
[1773322645568,5.58420052,2076.1,2074.7,1.74635216]
[1773322645775,5.58420052,2076.1,2074.8,3.542614]
[1773322645971,5.58420052,2076.1,2075.0,1.74106482]
[1773322645972,4.61227418,2076.1,2075.0,1.74106482]
[1773322646154,4.61227418,2076.1,2075.5,5.0]
[1773322646681,4.61227418,2076.1,2075.6,1.20447099]
[1773322647051,4.61227418,2076.1,2075.5,6.20451981]
[1773322647682,5.81645926,2076.1,2075.5,4.74730333]
[1773322647880,4.61227418,2076.1,2075.5,5.5436953]
[1773322648257,4.61227418,2076.1,2075.5,4.33916901]
[1773322648258,1.20421007,2076.1,2075.5,4.33916901]
[1773322648472,2.71299116,2075.9,2074.6,1.20505157]
[1773322648783,2.71299116,2075.9,2074.3,1.20522585]
[1773322648784,0.97192634,2075.6,2074.3,1.20522585]
[1773322648988,0.97192634,2075.4,2074.0,1.20540019]
[1773322649350,1.74106482,2075.3,2073.7,1.20551644]
[1773322649555,0.97192634,2075.2,2073.8,0.04822065]
[1773322650191,0.97192634,2075.2,2073.4,4.8222983]
[1773322650192,11.10777834,2074.8,2073.4,1.20574901]
[1773322650368,0.97192634,2074.8,2073.4,1.20574901]
[1773322650554,1.20499349,2074.7,2073.6,1.20563271]
[1773322650755,0.27310517,2074.6,2073.3,1.74106482]
[1773322650954,2.68210517,2074.6,2073.4,4.82286571]
[1773322652688,3.88716139,2074.6,2073.4,4.82286571]
[1773322652875,5.62822621,2074.6,2073.4,4.82286571]
[1773322653060,3.88716139,2074.6,2073.4,4.82286571]
[1773322653263,2.68210517,2074.6,2073.4,4.82286571]
[1773322653488,0.27310517,2074.6,2073.6,1.74106482]
[1773322653791,0.27310517,2074.6,2073.9,1.74106482]
[1773322653961,0.27310517,2074.6,2074.0,0.048216]
[1773322654586,0.18729159,2074.6,2074.0,0.048216]
[1773322654798,4.8171762,2076.0,2074.3,3.93942]
[1773322654799,3.71794833,2075.9,2074.3,3.93942]
[1773322654958,3.71794833,2075.9,2074.5,1.74106482]
[1773322654959,2.51359972,2075.9,2074.5,1.74106482]
[1773322655152,0.18729159,2075.8,2074.6,0.04820206]
[1773322655356,0.18729159,2076.0,2074.8,1.74106482]
[1773322655554,3.79640032,2076.3,2074.8,1.74106482]
[1773322655900,2.90028275,2076.2,2074.5,1.74106482]
[1773322656057,1.74106482,2075.9,2074.2,1.74106482]
[1773322656254,0.97192634,2075.9,2074.3,2.82112867]
[1773322656458,1.15921793,2075.8,2074.2,1.74106482]
[1773322656713,1.20441296,2075.7,2074.4,1.20516775]
[1773322656996,1.15921793,2075.7,2074.3,1.20520147]
[1773322657212,1.15921793,2075.6,2074.3,1.20520147]
[1773322657497,0.97192634,2075.5,2074.3,1.20520147]
[1773322657996,0.18729159,2075.4,2074.3,1.20520147]
[1773322658206,5.30128275,2075.4,2074.3,1.20520147]
[1773322658366,2.90028275,2075.3,2073.8,1.2065078]
[1773322658561,8.412699,2075.2,2073.8,1.2065078]
[1773322658777,1.20476121,2075.1,2073.8,0.001]
[1773322658978,2.36397914,2075.1,2073.8,0.001]
[1773322659198,5.93657,2074.8,2073.8,0.001]
[1773322659397,0.97192634,2074.5,2073.8,0.001]
[1773322659589,2.4,2074.4,2073.8,0.001]
[1773322659783,2.4,2074.4,2072.9,6.76685]
[1773322659977,0.18729159,2074.3,2073.0,4.57250793]
[1773322660298,0.18729159,2074.3,2073.1,2.83306124]
[1773322660507,0.18729159,2074.2,2072.8,1.20609803]
[1773322660678,0.18729159,2074.2,2073.1,1.20592349]
[1773322661269,0.18729159,2074.1,2073.1,1.20592349]
[1773322661600,3.6051704,2074.4,2073.1,1.20592349]
[1773322661801,0.18729159,2074.3,2073.1,1.20592349]
[1773322662284,0.18729159,2074.3,2073.2,2.83637745]
[1773322662470,0.18729159,2074.3,2073.1,1.20592349]
[1773322662666,4.81976515,2074.8,2073.1,1.20592349]
[1773322662667,0.18729159,2074.2,2073.7,1.20557457]
[1773322662926,1.74106482,2074.9,2073.7,1.20557457]
[1773322663088,1.74106482,2074.9,2073.6,4.8222983]
[1773322663089,0.97192634,2074.7,2073.6,1.20560664]
[1773322663273,0.97192634,2074.7,2073.0,3.94200669]
[1773322663473,1.74106482,2074.3,2073.1,7.65915989]
[1773322663688,1.12884456,2074.4,2073.1,4.82361305]
[1773322663895,0.18729159,2074.3,2073.2,7.09433097]
[1773322664090,2.394,2074.7,2073.3,2.83588397]
[1773322664305,2.394,2074.7,2073.2,4.18674]
[1773322664509,0.18729159,2074.6,2073.3,2.83341617]
[1773322664810,1.39237322,2074.6,2073.3,1.20580716]
[1773322665612,1.12884456,2074.5,2073.3,1.20580716]
[1773322666002,0.18729159,2074.4,2073.3,1.20580716]
[1773322666381,0.18729159,2074.4,2072.9,4.82369732]
[1773322666382,1.74106482,2073.7,2072.7,1.20712076]
[1773322666581,1.74106482,2074.3,2072.5,0.001]
[1773322666582,2.86990938,2073.4,2072.5,0.001]
[1773322666884,2.33470988,2073.2,2072.5,0.001]
[1773322667191,2.33470988,2073.2,2072.2,0.001]
[1773322667192,1.12884456,2073.0,2072.2,1.20741611]
[1773322667389,1.12884456,2073.0,2072.2,1.20740549]
[1773322667607,0.18629159,2072.9,2072.3,2.01279919]
[1773322668124,0.18629159,2072.9,2072.3,0.80646182]
[1773322668295,0.18629159,2072.9,2072.3,2.01279645]
[1773322668683,1.20609803,2072.8,2072.3,0.80646182]
[1773322668881,1.39237456,2072.9,2072.3,0.80646182]
[1773322669079,0.18629159,2072.9,2072.3,0.80646182]
[1773322670084,1.39234199,2072.9,2072.3,0.80646182]
[1773322670510,0.18629159,2072.9,2072.3,0.80646182]
[1773322670711,1.3923466,2072.9,2072.3,0.80646182]
[1773322670901,2.48692859,2072.9,2072.3,0.80646182]
[1773322671099,1.28087358,2072.9,2072.3,0.80646182]
[1773322671300,2.48691818,2072.9,2072.3,0.80646182]
[1773322671685,2.48691818,2072.9,2072.3,0.32609148]
[1773322672108,2.30062659,2072.9,2072.3,0.32609148]
[1773322672517,4.04169141,2072.9,2072.3,0.32609148]
[1773322673013,0.18629159,2072.8,2072.3,0.32609148]
[1773322673188,0.18629159,2072.8,2072.3,1.5324804]
[1773322673389,1.09458199,2072.9,2072.3,1.5324804]
[1773322673390,0.18629159,2072.7,2072.3,1.5324804]
[1773322673813,2.379,2073.2,2072.3,1.5324804]
[1773322674015,2.30033831,2073.4,2072.3,1.5324804]
[1773322674016,0.18629159,2073.1,2072.3,1.5324804]
[1773322674220,2.56429159,2073.3,2072.3,1.5324804]
[1773322674514,2.378,2073.3,2072.3,1.5324804]
[1773322675099,0.18629159,2073.2,2072.3,1.5324804]
[1773322675294,0.18629159,2073.2,2072.3,0.32609148]
[1773322675514,1.92735641,2073.1,2072.3,1.53247861]
[1773322675717,1.92735641,2073.1,2072.3,0.32609148]
[1773322676092,1.92735641,2073.1,2072.3,1.53247901]
[1773322676309,0.18629159,2073.1,2072.3,1.53247901]
[1773322676818,0.18629159,2073.1,2072.3,1.53247448]
[1773322677419,1.39225038,2073.1,2072.3,0.32609148]
[1773322677619,3.1333152,2073.1,2072.3,0.32609148]
[1773322677809,3.1333152,2073.1,2072.3,1.53246608]
[1773322677810,0.18629159,2073.1,2072.3,1.53246608]
[1773322679508,0.09431552,2073.1,2072.3,1.53246608]
[1773322680017,0.09431552,2073.1,2072.4,1.74106482]
[1773322680018,0.0503782,2073.1,2072.4,1.74106482]
[1773322680220,0.0503782,2073.1,2072.3,1.53246608]
[1773322681425,1.25630338,2073.1,2072.3,1.53246608]
[1773322681625,0.0503782,2073.1,2072.3,1.53246608]
[1773322681819,0.0503782,2073.1,2072.5,0.001]
[1773322682030,0.002,2072.9,2072.5,0.001]
[1773322682200,0.0503782,2073.1,2072.5,0.001]
[1773322682403,2.94632505,2074.3,2072.7,2.90081845]
[1773322682614,0.002,2073.1,2072.7,1.15975363]
[1773322682795,0.002,2073.1,2072.5,0.001]
[1773322683130,0.002,2073.4,2073.0,2.90081845]
[1773322683436,0.002,2073.4,2073.0,1.15975363]
[1773322684030,0.002,2073.4,2072.7,1.74106482]
[1773322684031,0.0167131,2073.4,2072.5,2.36702624]
[1773322684333,0.0167131,2073.4,2072.7,1.74106482]
[1773322684629,0.0167131,2073.4,2072.6,1.15975363]
[1773322684996,0.0167131,2073.4,2072.7,1.20615622]
[1773322685192,0.0167131,2073.4,2072.7,2.94722104]
[1773322685616,0.0167131,2073.4,2073.0,1.74106482]
[1773322685939,0.002,2074.4,2073.1,3.99357542]
[1773322686123,0.0147131,2074.2,2073.1,1.15975363]
[1773322686427,8.00613199,2073.9,2072.7,1.20615622]
[1773322686625,1.09458199,2073.9,2072.7,1.20615622]
[1773322686931,0.0147131,2073.8,2072.9,1.15975363]
[1773322687100,0.0147131,2074.2,2073.0,1.20598166]
[1773322687521,0.0147131,2074.1,2073.0,1.20598166]
[1773322687725,0.0147131,2074.3,2073.1,4.58133199]
[1773322687924,0.0147131,2074.2,2073.2,2.83995175]
[1773322688103,0.0147131,2074.2,2073.1,1.74106482]
[1773322688306,0.002,2074.4,2073.2,2.84234354]
[1773322688525,0.0147131,2074.3,2073.3,2.84234354]
[1773322688699,0.0147131,2074.3,2073.1,1.74106482]
[1773322689018,0.0147131,2074.3,2073.3,1.20580716]
[1773322689424,0.0147131,2074.2,2073.3,1.20580716]
[1773322689630,1.75577792,2074.2,2073.0,1.20592349]
[1773322689826,0.0147131,2074.1,2073.1,5.74447788]
[1773322690000,0.0147131,2074.3,2073.2,2.84365943]
[1773322690197,0.0147131,2074.3,2073.1,2.90081845]
[1773322690401,0.0147131,2074.3,2073.2,2.84292169]
[1773322690712,0.0147131,2074.2,2073.4,1.74106482]
[1773322690913,0.0147131,2074.2,2073.5,2.84217372]
[1773322691125,0.0147131,2074.2,2073.5,1.20569086]
[1773322691336,0.002,2074.4,2073.5,1.20569086]
[1773322692135,0.002,2074.4,2073.6,2.84101037]
[1773322692336,0.002,2074.4,2073.7,2.83959294]
[1773322692635,0.002,2074.4,2073.5,1.20569086]
[1773322692834,0.002,2074.4,2073.6,2.84017941]
[1773322693002,0.002,2074.4,2073.5,1.20569086]
[1773322693210,0.002,2074.4,2073.7,2.94663939]
[1773322693436,0.002,2074.4,2073.7,1.20557457]
[1773322693800,0.002,2074.4,2073.8,2.83878063]
[1773322694003,0.002,2074.4,2073.7,2.94663939]
[1773322694230,0.002,2074.4,2073.8,2.83781638]
[1773322694544,0.002,2074.4,2073.9,2.8375925]
[1773322694832,0.002,2074.4,2073.7,4.10639302]
[1773322695036,0.002,2074.4,2073.8,2.83726607]
[1773322695226,0.002,2074.4,2074.0,1.20540019]
[1773322696206,0.002,2074.6,2074.3,1.74106482]
[1773322696435,2.2988214,2076.0,2074.6,2.90081845]
[1773322696744,1.09458199,2076.0,2074.7,2.83049488]
[1773322696914,2.30060195,2076.4,2074.9,1.74106482]
[1773322697112,2.30060195,2076.4,2075.0,1.20481927]
[1773322697113,1.09658199,2076.4,2075.0,1.20481927]
[1773322698331,2.83564681,2076.3,2075.0,1.20481927]
[1773322698537,1.09458199,2076.2,2075.0,1.20481927]
[1773322700142,1.09458199,2076.2,2074.6,5.97903073]
[1773322700143,1.09458199,2075.9,2074.3,7.74454513]
[1773322700350,1.19630869,2075.8,2074.4,4.81997397]
[1773322700649,2.40044195,2076.2,2074.6,1.74106482]
[1773322701145,1.19630869,2076.2,2074.7,1.20499349]
[1773322701510,1.19630869,2076.0,2074.7,1.20499349]
[1773322701842,1.19830869,2076.4,2074.9,1.74106482]
[1773322702008,1.19830869,2076.4,2074.9,2.9207939]
[1773322702604,1.19830869,2076.4,2074.9,5.0717939]
[1773322702811,1.19830869,2076.4,2074.9,1.17972908]
[1773322703031,1.19830869,2076.4,2074.7,1.20499349]
[1773322703206,1.19630869,2075.9,2074.6,4.81997397]
[1773322703409,1.19630869,2075.9,2074.7,0.04819973]
[1773322703610,1.19630869,2075.8,2074.5,1.20507036]
[1773322703817,1.74106482,2075.9,2074.1,4.82135733]
[1773322703818,1.19630869,2075.5,2074.1,4.82135733]
[1773322705241,1.20464511,2075.3,2074.1,4.82135733]
[1773322706536,1.20464511,2075.3,2074.2,0.04821135]
[1773322706914,1.20464511,2075.3,2074.1,4.82135733]
[1773322706915,4.012546,2075.2,2074.1,1.20534207]
[1773322707114,1.19630869,2075.2,2074.1,1.20534207]
[1773322707644,1.20476121,2075.1,2074.2,0.04821135]
[1773322707814,1.20476121,2075.1,2073.8,0.04821162]
[1773322708217,1.20476121,2075.1,2073.7,1.20557457]
[1773322708415,1.20476121,2075.1,2073.3,4.82299945]
[1773322708416,2.9394906,2074.6,2073.3,4.82299945]
[1773322708636,1.19630869,2074.6,2073.3,4.82299945]
[1773322709021,2.307,2074.7,2073.4,1.74318191]
[1773322709343,2.9394906,2074.6,2073.3,4.82299945]
[1773322709729,1.20510966,2074.5,2073.1,4.82322866]
[1773322710130,1.20510966,2074.5,2074.3,0.001]
[1773322710325,1.20510966,2074.5,2073.1,4.82322866]
[1773322710529,1.20510966,2074.5,2073.1,6.00295774]
[1773322710835,1.20508894,2074.6,2074.0,0.001]
[1773322711032,3.51201745,2074.7,2074.0,0.001]
[1773322711623,4.81955636,2074.9,2074.0,0.001]
[1773322712138,4.81955636,2074.9,2074.0,0.049216]
[1773322712445,1.20487734,2074.9,2074.0,0.001]
[1773322712743,6.01566914,2075.0,2074.0,0.001]
[1773322712744,2.401165,2075.0,2074.0,0.001]
[1773322712948,1.20477657,2075.1,2074.0,0.001]
[1773322713318,2.301,2075.2,2074.0,0.001]
[1773322713523,1.19630869,2075.4,2074.2,1.74318191]
[1773322713524,1.20458706,2075.4,2074.2,1.74318191]
[1773322713722,1.20441296,2075.7,2074.3,1.20522585]
[1773322714349,2.40072165,2075.7,2074.3,1.20522585]
[1773322714722,2.40072165,2075.7,2074.4,0.04820035]
[1773322715646,2.40072165,2075.7,2074.5,1.20510966]
[1773322715820,1.19630869,2075.6,2074.3,4.82067103]
[1773322716018,1.74318191,2075.5,2074.4,0.04820671]
[1773322716219,1.19630869,2075.6,2074.3,4.82067103]
[1773322716448,2.9394906,2075.6,2074.2,4.8210026]
[1773322716649,1.19630869,2075.5,2074.2,4.8210026]
[1773322716827,1.19630869,2075.5,2074.3,0.04820903]
[1773322717032,3.4974143,2075.7,2074.5,1.74318191]
[1773322717428,3.4974143,2075.7,2074.3,1.17972908]
[1773322717632,1.20452902,2075.5,2074.3,1.17972908]
[1773322717832,1.20452902,2075.5,2074.1,1.20534207]
[1773322717833,1.74318191,2075.3,2074.1,1.20534207]
[1773322718033,1.19630869,2075.2,2074.2,0.04821135]
[1773322718344,2.9394906,2075.0,2074.0,0.001]
[1773322718543,1.19630869,2075.0,2074.0,1.20639391]
[1773322718850,2.287,2074.9,2074.0,1.20639391]
[1773322719055,2.287,2074.9,2074.1,0.04821368]
[1773322719260,1.19630869,2075.4,2074.0,2.38612299]
[1773322719435,1.19630869,2075.4,2074.1,0.04821093]
[1773322719760,1.20464511,2075.3,2074.2,1.20528396]
[1773322721059,14.67922669,2075.1,2074.0,1.20635789]
[1773322721360,1.19630869,2075.0,2074.0,1.20635789]
[1773322721841,1.20487734,2074.9,2074.0,1.25457389]
[1773322722451,1.20487734,2074.9,2074.0,0.001]
[1773322722658,1.20487734,2074.9,2074.0,1.20639675]
[1773322722848,2.9394906,2074.7,2073.2,8.20411057]
[1773322723152,10.5481906,2074.5,2073.3,1.20580716]
[1773322723354,1.2332106,2074.5,2073.3,1.20580716]
[1773322723729,1.2332106,2074.5,2073.4,0.04822996]
[1773322723932,1.20516775,2074.4,2073.5,1.20569086]
[1773322724332,1.20516775,2074.4,2073.4,1.25394261]
[1773322724527,1.20516775,2074.4,2073.1,1.20592349]
[1773322724729,1.20516775,2074.4,2073.0,1.20593989]
[1773322724730,11.2648436,2074.2,2073.0,1.20593989]
[1773322725052,1.2332106,2074.2,2073.1,0.04823693]
[1773322725253,1.2332106,2074.0,2072.9,1.20699361]
[1773322725453,1.2332106,2073.9,2073.0,0.04823926]
[1773322725662,1.2332106,2073.9,2072.9,1.20699361]
[1773322725863,3.5122106,2073.9,2072.9,1.20699361]
[1773322726048,3.5122106,2073.9,2072.9,0.001]
[1773322726049,1.20551644,2073.8,2072.9,0.001]
[1773322727253,1.20551644,2073.8,2073.7,0.001]
[1773322727459,1.20551644,2073.8,2072.9,0.001]
[1773322727869,2.43872704,2073.8,2072.9,0.001]
[1773322728481,1.20551644,2073.8,2072.9,0.001]
[1773322729767,2.43872704,2073.8,2072.9,0.001]
[1773322730168,1.20551644,2073.8,2072.9,0.001]
[1773322733980,4.01504574,2073.8,2072.9,0.001]
[1773322734739,4.01504574,2073.8,2072.6,0.001]
[1773322734741,1.61614902,2073.2,2072.6,0.001]
[1773322735045,1.61614902,2072.8,2072.0,0.001]
[1773322736264,1.20603984,2073.0,2072.0,0.001]
[1773322736592,3.47393182,2073.1,2072.1,1.61614902]
[1773322736749,3.47393182,2073.1,2072.2,1.22631327]
[1773322736955,4.8221814,2073.8,2072.4,1.22631327]
[1773322736956,1.20563271,2073.6,2072.4,1.22631327]
[1773322737188,1.20563271,2073.6,2072.5,0.0482509]
[1773322737676,1.20563271,2073.6,2072.3,1.61614902]
[1773322737677,2.8095293,2073.5,2072.4,0.04825323]
[1773322737877,1.20563271,2073.6,2072.4,0.04825323]
[1773322738194,1.20586532,2073.2,2072.3,1.20638903]
[1773322738375,1.20586532,2073.2,2072.4,0.04825323]